fUST/lending_fUST_20251117
["ID","MTS","AMOUNT","RATE_DAILY","PERIOD"]
[394152785,1763328238707,-162.04,0.000379,30]
[394152786,1763328238741,-1974.22,0.000379,14]
[394152787,1763328238769,-1597.5,0.000379,14]
[394152788,1763328238797,-500.0,0.00037941,15]
[394152789,1763328238824,-500.0,0.00038036,2]
[394152790,1763328238850,-500.0,0.00038036,15]
[394152791,1763328238877,-1023.0,0.00038036,15]
[394152792,1763328238905,-500.0,0.00038036,15]
[394152793,1763328238932,-151.0,0.00038036,15]
[394152794,1763328238959,-600.0,0.00038036,15]
[394152795,1763328238981,-500.0,0.00038173,2]
[394152796,1763328239007,-500.0,0.00038173,15]
[394152797,1763328239033,-1023.0,0.00038173,15]
[394152798,1763328239060,-500.0,0.00038173,15]
[394152799,1763328239087,-238.556354,0.00038173,15]
[394152800,1763328239112,-600.0,0.00038173,15]
[394152801,1763328239140,-500.0,0.00038215,15]
[394152802,1763328239168,-500.0,0.0003831,2]
[394152803,1763328239195,-500.0,0.0003831,15]
[394152804,1763328239220,-1023.0,0.0003831,15]
[394152805,1763328239249,-500.0,0.0003831,15]
[394152806,1763328239277,-600.0,0.0003831,15]
[394152807,1763328239303,-413.0,0.00038368,2]
[394152808,1763328239327,-500.0,0.00038447,2]
[394152809,1763328239351,-500.0,0.00038447,15]
[394152810,1763328239377,-1023.0,0.00038447,15]
[394152811,1763328239406,-500.0,0.00038447,15]
[394152812,1763328239435,-600.0,0.00038447,15]
[394152813,1763328239461,-500.0,0.00038489,15]
[394152814,1763328239485,-500.0,0.00038584,2]
[394152815,1763328239510,-500.0,0.00038584,15]
[394152816,1763328239534,-1023.0,0.00038584,15]
[394152817,1763328239560,-500.0,0.00038584,15]
[394152818,1763328239585,-600.0,0.00038584,15]
[394152819,1763328239609,-160.0,0.0003868,2]
[394152820,1763328239636,-8487.56622133,0.00038711,3]
[394152821,1763328239662,-500.0,0.00038721,2]
[394152822,1763328239688,-500.0,0.00038721,15]
[394152823,1763328239715,-1023.0,0.00038721,15]
[394152824,1763328239743,-500.0,0.00038721,15]
[394152825,1763328239768,-600.0,0.00038721,15]
[394152826,1763328239794,-613.23192408,0.00038763,15]
[394152827,1763328239932,-510.27854692,0.00038858,2]
[394152828,1763328239962,-500.0,0.00038858,15]
[394152829,1763328239987,-1023.0,0.00038858,15]
[394152830,1763328240012,-500.0,0.00038858,15]
[394152831,1763328240037,-600.0,0.00038858,15]
[394152832,1763328240064,-500.0,0.00038995,15]
[394152833,1763328240089,-1023.0,0.00038995,15]
[394152834,1763328240117,-500.0,0.00038995,15]
[394152835,1763328240141,-600.0,0.00038995,15]
[394152836,1763328240167,-500.0,0.00039132,15]
[394152837,1763328240193,-1023.0,0.00039132,15]
[394152838,1763328240222,-500.0,0.00039132,15]
[394152839,1763328240247,-600.0,0.00039132,15]
[394152840,1763328240276,-260.0,0.00039228,2]
[394152841,1763328240306,-500.0,0.00039269,15]
[394152842,1763328240330,-1023.0,0.00039269,15]
[394152843,1763328240356,-500.0,0.00039269,15]
[394152844,1763328240381,-600.0,0.00039269,15]
[394152845,1763328240404,-500.0,0.00039406,15]
[394152846,1763328240428,-1023.0,0.00039406,15]
[394152847,1763328240453,-500.0,0.00039406,15]
[394152848,1763328240478,-600.0,0.00039406,15]
[394152849,1763328240502,-500.0,0.00039543,15]
[394152850,1763328240526,-1023.0,0.00039543,15]
[394152851,1763328240550,-500.0,0.00039543,15]
[394152852,1763328240573,-600.0,0.00039543,15]
[394152853,1763328240595,-432.686513,0.00039654,2]
[394152854,1763328240619,-500.0,0.0003968,15]
[394152855,1763328240643,-1023.0,0.0003968,15]
[394152856,1763328240667,-500.0,0.0003968,15]
[394152857,1763328240691,-600.0,0.0003968,15]
[394152858,1763328240716,-360.0,0.00039776,2]
[394152859,1763328240741,-500.0,0.00039817,15]
[394152860,1763328240765,-1023.0,0.00039817,15]
[394152861,1763328240789,-580.0,0.00039817,15]
[394152862,1763328240813,-600.0,0.00039817,15]
[394152863,1763328240836,-500.0,0.00039954,15]
[394152864,1763328240859,-1023.0,0.00039954,15]
[394152865,1763328240882,-600.0,0.00039954,15]
[394152866,1763328240906,-553.71767632,0.00039989,2]
[394152867,1763328241027,856.61,0.00037692,10]
[394152868,1763328242173,300.0,0.00039131,5]
[394152878,1763328409136,-160.0,0.0003545,2]
[394152879,1763328409156,-56.68123857,0.0003558,2]
[394152880,1763328465123,7039.28056635,0.00018,2]
[394152881,1763328465149,1810.99843512,0.00018,2]
[394152883,1763328490170,-886.41278314,0.00029,2]
[394152885,1763328502958,1968.64951715,0.0002,2]
[394152886,1763328502983,9261.83492394,0.0002,2]
[394152890,1763328513550,1651.51137626,0.00026,30]
[394152891,1763328544753,-309785.36093174,0.00038145,7]
[394152892,1763328544782,-87565.89556718,0.00038145,2]
[394152893,1763328544812,-6521.52871463,0.00038145,7]
[394152894,1763328544840,-22830.83041439,0.00038145,2]
[394152895,1763328544867,-329.42887015,0.00038145,2]
[394152896,1763328544894,-294.00740406,0.00038145,2]
[394152897,1763328544920,-52102.46429356,0.00038145,2]
[394152898,1763328544944,-641.96051327,0.00038145,2]
[394152899,1763328544969,-1371.92616715,0.00038145,2]
[394152900,1763328544993,-157.77975846,0.00038145,2]
[394152901,1763328545017,-707.7533436,0.00038145,2]
[394152902,1763328545041,-21732.24186152,0.00038145,2]
[394152903,1763328545064,-6343.57140619,0.00038145,2]
[394152904,1763328545088,-158.7864761,0.00038145,2]
[394152905,1763328545115,-112620.38717544,0.00038145,2]
[394152906,1763328545140,-1729.94040816,0.00038145,2]
[394152907,1763328545164,-7535.50433252,0.00038145,2]
[394152908,1763328545190,-2091.95114401,0.00038145,2]
[394152909,1763328545215,-19054.27849772,0.00038145,2]
[394152910,1763328545240,-33801.52238294,0.00038145,7]
[394152911,1763328545264,-511.42448032,0.00038145,2]
[394152912,1763328545290,-180.65503262,0.00038145,2]
[394152913,1763328545315,-471.39241264,0.00038145,2]
[394152914,1763328545341,-30669.97826024,0.00038145,2]
[394152915,1763328545373,-994.44528595,0.00038145,2]
[394152916,1763328545399,-190.56651282,0.00038145,2]
[394152917,1763328545424,-1407.24617472,0.00038145,2]
[394152918,1763328545452,-5939.42398377,0.00038145,2]
[394152919,1763328545476,-10760.2966196,0.00038145,2]
[394152920,1763328545501,-656.00105161,0.00038145,2]
[394152921,1763328545525,-204.46993902,0.00038145,2]
[394152922,1763328545548,-2920.0,0.00038145,2]
[394152923,1763328545571,-1459.38758786,0.00038145,2]
[394152924,1763328545595,-387.69198464,0.00038145,2]
[394152925,1763328545619,-202.83475723,0.00038145,2]
[394152926,1763328545645,-3170.15387121,0.00038145,2]
[394152927,1763328545671,-367.32672492,0.00038145,2]
[394152928,1763328545696,-167.80145327,0.00038145,2]
[394152929,1763328545722,-151.45187999,0.00038145,2]
[394152930,1763328545748,-178424.35104566,0.00038145,2]
[394152931,1763328545772,-260.4472582,0.00038145,2]
[394152932,1763328545797,-58500.0,0.00038145,2]
[394152933,1763328545820,-31651.85390129,0.00038145,7]
[394152934,1763328545843,-618.0,0.00038145,2]
[394152935,1763328545867,-1672.70993628,0.00038145,2]
[394152936,1763328545891,-326.13244355,0.00038145,2]
[394152937,1763328545916,-81354.73525752,0.00038145,7]
[394152938,1763328556047,-21947.17161326,0.000285,7]
[394152939,1763328556073,-3516.04246844,0.0003,2]
[394152940,1763328556097,-357.79649309,0.0003,2]
[394152941,1763328556123,-268.90095446,0.0003,2]
[394152942,1763328556148,-900.0,0.0003,2]
[394152943,1763328556172,-30000.0,0.0003112,2]
[394152944,1763328556197,-43793.26890529,0.000319,2]
[394152945,1763328556223,-356.31876143,0.0003558,2]
[394152946,1763328556250,-500.0,0.00037391,15]
[394152947,1763328556276,-539.1969175,0.00037391,15]
[394152948,1763328556305,-500.0,0.00037391,15]
[394152949,1763328556332,-500.0,0.00037391,15]
[394152950,1763328556364,-500.0,0.00037391,7]
[394152951,1763328556392,-273.22023606,0.00037391,15]
[394152952,1763328556422,-418.24334169,0.00037391,7]
[394152953,1763328556451,-500.0,0.00037391,15]
[394152954,1763328556479,-500.0,0.00037391,15]
[394152955,1763328556512,-500.0,0.00037391,7]
[394152956,1763328556540,-500.0,0.00037391,15]
[394152957,1763328556568,-500.0,0.00037391,15]
[394152958,1763328556596,-304.83741125,0.00037391,15]
[394152959,1763328556628,-500.0,0.00037391,7]
[394152960,1763328556656,-175.87210708,0.00037391,15]
[394152961,1763328556688,-500.0,0.00037391,7]
[394152962,1763328556721,-500.0,0.00037391,7]
[394152963,1763328556752,-500.0,0.00037391,7]
[394152964,1763328556788,-500.0,0.00037391,7]
[394152965,1763328556907,-500.0,0.00037391,7]
[394152966,1763328556940,-500.0,0.00037391,7]
[394152967,1763328556965,-1000.0,0.00037392,14]
[394152968,1763328556989,-194.18654411,0.0003764,15]
[394152969,1763328557013,-380.58843271,0.0003764,7]
[394152970,1763328557037,-262093.656003,0.00037641,3]
[394152971,1763328557063,-2995.6116075,0.00037641,3]
[394152972,1763328557089,-158163.6191129,0.00037651,2]
[394152973,1763328557114,-412.1361344,0.00037673,5]
[394152974,1763328557138,-1776.8,0.000377,14]
[394152975,1763328557163,-1437.75,0.000377,14]
[394152976,1763328557188,-9067.62284393,0.000379,2]
[394152977,1763328557214,-217.1248678,0.00038299,2]
[394152978,1763328557239,-1000.0,0.00038691,14]
[394152979,1763328557264,-1028.73438026,0.00039,10]
[394152980,1763328557289,-248.6874136,0.00039162,2]
[394152981,1763328557314,-328.16069194,0.0003918,120]
[394152982,1763328557340,-150.0,0.00039988,2]
[394152983,1763328557375,-1004.54098877,0.00039989,14]
[394152984,1763328557399,-402.51167418,0.0004,2]
[394152985,1763328559329,150.0,0.00039953,15]
[394152986,1763328559631,150.0,0.0003913,5]
[394152987,1763328559854,150.0,0.0003871,3]
[394152988,1763328560118,150.0,0.00038144,7]
[394152989,1763328560365,150.0,0.00038136,20]
[394152990,1763328560649,150.0,0.00037899,30]
[394152991,1763328560910,150.0,0.00037899,14]
[394152992,1763328561168,150.0,0.00037873,31]
[394152993,1763328561430,150.0,0.00037863,10]
[394152994,1763328561698,150.0,0.00037862,120]
[394152995,1763328561939,150.0,0.00037392,48]
[394152996,1763328563202,150.0,0.00027795,16]
[394153038,1763328631691,-185.43361036,0.00028986,2]
[394153040,1763328631700,-150.0,0.00029559,35]
[394153041,1763328631709,-150.0,0.00033064,6]
[394153043,1763328631718,-150.0,0.00033419,117]
[394153045,1763328631727,-537.17310975,0.00038144,20]
[394153047,1763328631737,-805.16411342,0.00038144,20]
[394153049,1763328631749,-657.66277683,0.00038144,20]
[394153051,1763328631758,-185.43361036,0.00038846,2]
[394153053,1763328631767,-5000.0,0.00040086,4]
[394153054,1763328631775,-160.0,0.0004029,2]
[394153055,1763328631785,-436.20531373,0.00040555,5]
[394153056,1763328631793,-260.0,0.00040838,2]
[394153057,1763328631802,-165.370443,0.00040904,10]
[394153058,1763328631810,-360.0,0.00041386,2]
[394153059,1763328631820,-460.0,0.00041934,2]
[394153060,1763328631829,-945.0,0.000421,2]
[394153061,1763328631838,-131046.828002,0.00042354,3]
[394153062,1763328631847,-1497.80580375,0.00042354,3]
[394153063,1763328631856,-640.0,0.00042354,120]
[394153064,1763328631866,-640.0,0.00042354,120]
[394153065,1763328631875,-640.0,0.00042354,120]
[394153066,1763328631884,-640.0,0.00042354,120]
[394153067,1763328631892,-560.0,0.00042482,2]
[394153068,1763328631901,-1776.8,0.000429,14]
[394153069,1763328631910,-1437.75,0.000429,14]
[394153070,1763328631919,-660.0,0.0004303,2]
[394153071,1763328631928,-165.370443,0.00043201,2]
[394153072,1763328631937,-248.6874136,0.00043463,2]
[394153073,1763328631946,-760.0,0.00043578,2]
[394153074,1763328631955,-860.0,0.00044126,2]
[394153075,1763328631964,-165.370443,0.00044408,10]
[394153076,1763328631973,-260.0,0.00044674,2]
[394153077,1763328631982,-432.686513,0.00046143,2]
[394153078,1763328631991,-160.173842,0.00046274,10]
[394153079,1763328632000,-248.6874136,0.00047765,2]
[394153080,1763328632009,-165.370443,0.00047912,10]
[394153081,1763328632017,-9067.62284387,0.00048313,28]
[394153082,1763328632026,-185.61904397,0.00048707,2]
[394153083,1763328632035,-206.887188,0.000493,2]
[394153084,1763328632044,-500.0,0.00049315,7]
[394153085,1763328632052,-391.2456136,0.00049315,120]
[394153086,1763328632061,-500.0,0.00049315,7]
[394153087,1763328632070,-1000.0,0.00049315,2]
[394153088,1763328632079,-1000.0,0.00049315,2]
[394153089,1763328632088,-869.48,0.00049315,7]
[394153090,1763328632096,-2161.73,0.00049315,2]
[394153091,1763328632105,-500.0,0.00049315,2]
[394153092,1763328632114,-500.0,0.00049315,2]
[394153093,1763328632123,-151.0,0.00049315,120]
[394153094,1763328632131,-3077.58,0.00049315,3]
[394153095,1763328632140,-500.0,0.00049315,120]
[394153096,1763328632149,-1853.65,0.00049315,120]
[394153097,1763328632158,-500.0,0.00049315,120]
[394153098,1763328632167,-782.22,0.00049315,7]
[394153099,1763328632175,-500.0,0.00049315,120]
[394153100,1763328632187,-78099.86979451,0.00049442,4]
[394153126,1763328637723,-266.4119029,0.00042353,7]
[394153128,1763328637732,-186.2080119,0.00042353,31]
[394153130,1763328637741,-546.47148241,0.00042353,7]
[394153132,1763328637750,-52946.95820749,0.00049442,4]
[394153134,1763328637759,-1497.80580375,0.00049442,4]
[394153136,1763328637768,-151.0,0.00049452,120]
[394153139,1763328637778,-500.0,0.00049452,120]
[394153141,1763328637787,-500.0,0.00049452,120]
[394153143,1763328637795,-1437.75,0.000495,14]
[394153145,1763328637804,-162.04,0.000495,30]
[394153148,1763328637813,-151.0,0.00049589,120]
[394153150,1763328637821,-500.0,0.00049589,120]
[394153153,1763328637830,-500.0,0.00049589,120]
[394153156,1763328637839,-500.0,0.00049589,7]
[394153160,1763328637854,-500.0,0.00049589,7]
[394153163,1763328637863,-1000.0,0.00049589,2]
[394153166,1763328637873,-1000.0,0.00049589,2]
[394153169,1763328637882,-869.48,0.00049589,7]
[394153172,1763328637891,-2161.73,0.00049589,2]
[394153174,1763328637900,-500.0,0.00049589,2]
[394153176,1763328637909,-500.0,0.00049589,2]
[394153178,1763328637918,-3077.58,0.00049589,3]
[394153180,1763328637927,-1853.65,0.00049589,120]
[394153182,1763328637936,-500.0,0.00049589,120]
[394153184,1763328637945,-782.22,0.00049589,7]
[394153186,1763328637954,-1776.8,0.000496,14]
[394153188,1763328637962,-181.65541567,0.00049726,120]
[394153190,1763328637971,-500.0,0.00049726,120]
[394153192,1763328637982,-500.0,0.00049726,120]
[394153194,1763328637991,-500.0,0.00049863,120]
[394153196,1763328638000,-500.0,0.00049863,120]
[394153199,1763328638009,-500.0,0.00049863,7]
[394153201,1763328638018,-500.0,0.00049863,7]
[394153203,1763328638027,-1000.0,0.00049863,2]
[394153204,1763328638036,-1000.0,0.00049863,2]
[394153206,1763328638046,-869.48,0.00049863,7]
[394153208,1763328638055,-2161.73,0.00049863,2]
[394153210,1763328638064,-500.0,0.00049863,2]
[394153212,1763328638073,-500.0,0.00049863,2]
[394153214,1763328638081,-3077.58,0.00049863,3]
[394153217,1763328638091,-1853.65,0.00049863,120]
[394153219,1763328638100,-500.0,0.00049863,120]
[394153221,1763328638109,-782.22,0.00049863,7]
[394153223,1763328638120,-500.0,0.0005,120]
[394153225,1763328638129,-500.0,0.0005,120]
[394153227,1763328638138,-508.0,0.0005,2]
[394153229,1763328638148,-1497.80580375,0.00050126,4]
[394153231,1763328638157,-500.0,0.00050136,7]
[394153233,1763328638166,-500.0,0.00050136,7]
[394153235,1763328638175,-1000.0,0.00050136,2]
[394153237,1763328638186,-1000.0,0.00050136,2]
[394153239,1763328638195,-869.48,0.00050136,7]
[394153241,1763328638205,-2161.73,0.00050136,2]
[394153243,1763328638214,-500.0,0.00050136,2]
[394153245,1763328638223,-500.0,0.00050136,2]
[394153247,1763328638231,-3077.58,0.00050136,3]
[394153249,1763328638240,-1853.65,0.00050136,120]
[394153251,1763328638249,-500.0,0.00050136,120]
[394153253,1763328638259,-782.22,0.00050136,7]
[394153254,1763328638267,-500.0,0.00050137,120]
[394153256,1763328638276,-500.0,0.00050137,120]
[394153258,1763328638285,-500.0,0.00050274,120]
[394153260,1763328638294,-500.0,0.00050274,120]
[394153262,1763328638303,-1497.80580375,0.000503,4]
[394153264,1763328638312,-5101.21950726,0.0005031,2]
[394153266,1763328638321,-2357.08806112,0.0005031,120]
[394153775,1763328643176,-1276.9262635,0.0005031,120]
[394153776,1763328643188,-1776.9262635,0.0005031,120]
[394154053,1763328645841,-500.0,0.00049315,120]
[394154055,1763328645851,-405.15723688,0.00049589,120]
[394154057,1763328645860,-20766.05941188,0.0005031,120]
[394154060,1763328645870,-173.602598,0.0005037,2]
[394154061,1763328645880,-500.0,0.0005041,7]
[394154064,1763328645889,-500.0,0.0005041,7]
[394154065,1763328645899,-1000.0,0.0005041,2]
[394154067,1763328645908,-1000.0,0.0005041,2]
[394154069,1763328645917,-869.48,0.0005041,7]
[394154071,1763328645926,-2161.73,0.0005041,2]
[394154073,1763328645935,-500.0,0.0005041,2]
[394154075,1763328645944,-500.0,0.0005041,2]
[394154076,1763328645954,-3077.58,0.0005041,3]
[394154077,1763328645963,-1853.65,0.0005041,120]
[394154078,1763328645972,-500.0,0.0005041,120]
[394154079,1763328645981,-782.22,0.0005041,7]
[394154080,1763328645990,-500.0,0.00050411,120]
[394154081,1763328645999,-210.24164252,0.00050411,120]
[394154082,1763328646007,-504.57839113,0.0005044,30]
[394154083,1763328646016,-500.0,0.00050548,120]
[394154084,1763328646025,-500.0,0.00050684,7]
[394154085,1763328646033,-500.0,0.00050684,7]
[394154086,1763328646043,-1000.0,0.00050684,2]
[394154087,1763328646052,-1000.0,0.00050684,2]
[394154088,1763328646061,-869.48,0.00050684,7]
[394154089,1763328646070,-2161.73,0.00050684,2]
[394154090,1763328646079,-500.0,0.00050684,2]
[394154092,1763328646089,-500.0,0.00050684,2]
[394154093,1763328646098,-3077.58,0.00050684,3]
[394154095,1763328646108,-1853.65,0.00050684,120]
[394154097,1763328646118,-500.0,0.00050684,120]
[394154100,1763328646131,-782.22,0.00050684,7]
[394154103,1763328646141,-500.0,0.00050685,120]
[394154106,1763328646151,-778.93,0.00050752,2]
[394154108,1763328646161,-500.0,0.00050822,120]
[394154111,1763328646171,-184.6151934,0.00050858,120]
[394154113,1763328646181,-500.0,0.00050873,7]
[394154115,1763328646190,-150.0,0.00050873,10]
[394154116,1763328646200,-1497.80580375,0.0005089,4]
[394154119,1763328646209,-39530.68972244,0.000509,30]
[394154121,1763328646221,-937.01,0.000509,30]
[394154132,1763328646315,-253.54649775,0.000509,30]
[394154402,1763328695735,151.0,0.00032877,120]
[394154408,1763329580971,160.0,0.00029589,35]
[394154409,1763329593856,305.94839957,0.00030003,2]
[394154410,1763329641250,-305.94839957,0.00034077,56]
[394154411,1763329641271,-150.0,0.00038151,4]
[394154412,1763329641291,-305.94839957,0.00038151,110]
[394154413,1763329641310,-2000.0,0.00038151,20]
[394154414,1763329641329,-102.29279575,0.00039,2]
[394154416,1763329760515,150.0,0.00029588,35]
[394154417,1763329760690,150.0,0.00027794,16]
[394154440,1763329831803,-150.0,0.00033063,6]
[394154441,1763329831813,-150.0,0.00033418,117]
[394154442,1763329831822,-150.0,0.00034076,56]
[394154444,1763329831832,-150.0,0.00037391,48]
[394154446,1763329831841,-870.62584,0.00038148,20]
[394154448,1763329831862,-1129.37416,0.00038148,20]
[394154451,1763329831876,-150.0,0.0003815,20]
[394154453,1763329831887,-150.0,0.0003815,110]
[394154454,1763329831896,-159.2279312,0.00038689,2]
[394154456,1763329831905,-47.70720425,0.00039,2]
[394154458,1763329831915,-169.05047746,0.00039344,2]
[394154460,1763329831924,-150.0,0.00039952,15]
[394154461,1763329831934,-150.0,0.00040554,5]
[394154462,1763329831943,-150.0,0.00040554,2]
[394154463,1763329831953,-167.407172,0.00042051,2]
[394154465,1763329831962,-150.0,0.00042352,31]
[394154467,1763329831972,-5871.4553241,0.00043379,2]
[394154470,1763329831981,-189.538684,0.00043904,2]
[394154471,1763329831991,-778.93,0.00045036,2]
[394154473,1763329832001,-286.61027615,0.00047468,2]
[394154475,1763329832010,-150.0,0.00048312,28]
[394154477,1763329832019,-150.0,0.00048312,120]
[394154479,1763329832028,-1557.85,0.0004913,2]
[394154481,1763329832037,-1000.0,0.00049315,2]
[394154483,1763329832046,-252.84232159,0.00049315,120]
[394154485,1763329832056,-1000.0,0.00049315,2]
[394154487,1763329832065,-724.56,0.00049315,7]
[394154489,1763329832075,-1801.45,0.00049315,2]
[394154491,1763329832084,-500.0,0.00049315,2]
[394154493,1763329832094,-28117.09027723,0.00049315,2]
[394154495,1763329832102,-500.0,0.00049588,120]
[394154497,1763329832112,-1000.0,0.00049589,2]
[394154499,1763329832121,-1000.0,0.00049589,2]
[394154501,1763329832130,-724.56,0.00049589,7]
[394154503,1763329832140,-1801.45,0.00049589,2]
[394154505,1763329832149,-500.0,0.00049589,2]
[394154507,1763329832159,-150.0,0.00049589,5]
[394154510,1763329832168,-150.0,0.00049599,14]
[394154512,1763329832177,-2564.65,0.0004986,3]
[394154514,1763329832187,-1544.71,0.0004986,120]
[394154516,1763329832196,-500.0,0.00049861,7]
[394154517,1763329832205,-500.0,0.00049861,7]
[394154520,1763329832214,-500.0,0.00049862,120]
[394154522,1763329832227,-500.0,0.00049862,120]
[394154524,1763329832236,-500.0,0.00049862,2]
[394154526,1763329832246,-500.0,0.00049862,120]
[394154528,1763329832255,-651.85,0.00049862,7]
[394154530,1763329832264,-1000.0,0.00049863,2]
[394154532,1763329832273,-1000.0,0.00049863,2]
[394154534,1763329832283,-724.56,0.00049863,7]
[394154536,1763329832292,-1801.45,0.00049863,2]
[394154538,1763329832301,-500.0,0.00049863,2]
[394154540,1763329832310,-255.16512179,0.00049971,10]
[394154542,1763329832320,-337.11076587,0.0005,120]
[394154544,1763329832329,-2564.65,0.00050134,3]
[394154546,1763329832339,-1544.71,0.00050134,120]
[394154548,1763329832348,-500.0,0.00050135,7]
[394154550,1763329832357,-500.0,0.00050135,7]
[394154552,1763329832366,-1000.0,0.00050136,2]
[394154554,1763329832376,-494.36707452,0.00050136,2]
[394154556,1763329832385,-724.56,0.00050136,7]
[394154558,1763329832395,-1801.45,0.00050136,2]
[394154560,1763329832405,-405.15723688,0.00050136,120]
[394154562,1763329832414,-500.0,0.00050136,2]
[394154564,1763329832424,-500.0,0.00050136,120]
[394154566,1763329832433,-500.0,0.00050136,2]
[394154568,1763329832443,-500.0,0.00050136,120]
[394154570,1763329832452,-651.85,0.00050136,7]
[394154572,1763329832461,-500.0,0.00050274,120]
[394154574,1763329832471,-210.24164252,0.00050274,120]
[394154576,1763329832480,-177.0,0.00050312,120]
[394154578,1763329832489,-2564.65,0.00050408,3]
[394154580,1763329832499,-1544.71,0.00050408,120]
[394154582,1763329832508,-500.0,0.00050409,7]
[394154584,1763329832517,-500.0,0.00050409,7]
[394154586,1763329832527,-1000.0,0.0005041,2]
[394154588,1763329832536,-724.56,0.0005041,7]
[394154590,1763329832546,-1801.45,0.0005041,2]
[394154592,1763329832555,-500.0,0.0005041,2]
[394154594,1763329832564,-500.0,0.0005041,120]
[394154596,1763329832574,-500.0,0.0005041,2]
[394154598,1763329832584,-384.78328927,0.0005041,2]
[394154600,1763329832595,-439.7523306,0.0005041,2]
[394154602,1763329832604,-500.0,0.0005041,120]
[394154605,1763329832614,-651.85,0.0005041,7]
[394154606,1763329832623,-500.0,0.00050411,120]
[394154609,1763329832632,-500.0,0.00050548,120]
[394154611,1763329832641,-2564.65,0.00050682,3]
[394154613,1763329832651,-1544.71,0.00050682,120]
[394154615,1763329832660,-500.0,0.00050683,7]
[394154617,1763329832670,-150.0,0.00050683,3]
[394154619,1763329832679,-500.0,0.00050683,7]
[394154621,1763329832688,-888.15602163,0.00050684,2]
[394154623,1763329832698,-387.62874553,0.00050684,7]
[394154625,1763329832707,-724.56,0.00050684,7]
[394154627,1763329832717,-1801.45,0.00050684,2]
[394154629,1763329832726,-500.0,0.00050684,2]
[394154631,1763329832735,-500.0,0.00050684,120]
[394154633,1763329832745,-500.0,0.00050684,2]
[394154635,1763329832754,-500.0,0.00050684,120]
[394154636,1763329832765,-651.85,0.00050684,7]
[394154639,1763329832775,-500.0,0.00050685,120]
[394154641,1763329832790,-150.0,0.00050751,2]
[394154643,1763329832800,-160.0,0.00050802,2]
[394154645,1763329832810,-500.0,0.00050822,120]
[394154647,1763329832820,-150.0,0.00050857,120]
[394154649,1763329832832,-150.0,0.00050872,7]
[394154651,1763329832842,-150.0,0.00050872,10]
[394154653,1763329832855,-186.48833203,0.00050889,7]
[394154655,1763329832866,-150.0,0.00050889,4]
[394154657,1763329832875,-83018.5677414,0.0005089,4]
[394154708,1763329837776,-322.42618754,0.00049314,120]
[394154710,1763329837792,-177.57381246,0.00049314,120]
[394154712,1763329837804,-470.62584,0.00049314,120]
[394154714,1763329837813,-500.0,0.00049314,7]
[394154716,1763329837823,-22139.6387086,0.0005089,4]
[394154718,1763329837835,-1048.46406262,0.0005089,4]
[394154720,1763329837844,-150.0,0.00050899,30]
[394154722,1763329837853,-5855.89377981,0.000509,30]
[394154724,1763329837862,-39530.68972244,0.000509,30]
[394154727,1763329837873,-2564.65,0.00050956,3]
[394154730,1763329837882,-1544.71,0.00050956,120]
[394154734,1763329837895,-390.05975324,0.00050957,7]
[394154737,1763329837904,-500.0,0.00050957,7]
[394154740,1763329837914,-724.56,0.00050958,7]
[394154743,1763329837923,-1801.45,0.00050958,2]